Cogmind - Beta 16 @@@ ROGUE MODE // 2026.02.04 @ 21:22:34 Player: sanktem Result: Destroyed by Y-45 Defender with Heavy Assault Rifle Performance ------------- Evolutions (1) 500 Regions Visited (2) 400 Robots Destroyed (42) 210 Value Destroyed (995) 995 Prototype IDs (0) 0 Alien Tech Used (0) 0 Bonus (0) 0 TOTAL SCORE: 2105 Bonus ------- None Cogmind --------- Core Integrity 0/400 Matter 285/300 Energy 250/250 System Corruption 0% Temperature Cool (10) Movement Core (100) Ox1 Location -9/Materials Parts ------- > --- POWER (1) -------- Ion Engine > --- PROPULSION (3) --- (None) > --- UTILITY (3) ------ Small Storage Unit Weight Redist. System Power Shielding > --- WEAPON (2) ------- Mini Grenade Launcher > --- INVENTORY (8) ---- Light Ion Engine Light Ion Engine Light Assault Rifle Heavy Assault Rifle Mining Laser Peak State ------------ > --- POWER ------------ Ion Engine > --- PROPULSION ------- Light Treads Light Treads Light Treads > --- UTILITY ---------- Small Storage Unit Structural Scanner Power Shielding > --- WEAPON ----------- Small Laser Small Laser > --- INVENTORY -------- Ion Engine Light Ion Engine Light Ion Engine Small Laser [Rating: 9] Favorites ----------- Power Ion Engine Engine Ion Engine Propulsion Light Treads Treads Light Treads Utility Small Storage Unit Device Structural Scanner Storage Small Storage Unit Processor Targeting Computer Protection Power Shielding Weapon Small Laser Energy Gun Small Laser Ballistic Gun Light Assault Rifle Launcher Mini Grenade Launcher Build | -11 -10 -9 ------- Run | Yrd Mat Mat Slots Evolved 2 | . . 2 Power . | . . . Propulsion 1 | . . 1 Utility 1 | . . 1 Weapon . | . . . Parts Attached 26 | 6 8 12 Power 5 | 1 2 2 Engine 5 | 1 2 2 Core . | . . . Reactor . | . . . Propulsion 7 | 2 1 4 Treads 7 | 2 1 4 Leg . | . . . Wheel . | . . . Hover . | . . . Flight . | . . . Utility 6 | 1 3 2 Device 2 | . 1 1 Storage 1 | 1 . . Processor 1 | . 1 . Hackware . | . . . Protection 2 | . 1 1 Artifact . | . . . Weapon 8 | 2 2 4 Energy Gun 5 | 1 2 2 Energy Cannon . | . . . Ballistic Gun 2 | 1 . 1 Ballistic Cannon . | . . . Launcher 1 | . . 1 Special Weapon . | . . . Impact Weapon . | . . . Slashing Weapon . | . . . Piercing Weapon . | . . . Special Melee Weapon . | . . . Unidentified Prototypes . | . . . Parts Lost 20 | . 5 15 Power 3 | . 1 2 Propulsion 7 | . 1 6 Utility 3 | . 1 2 Weapon 7 | . 2 5 Highest Loss Streak 4 | . 3 4 To Critical Strikes . | . . . Average Backups 4 | 1 3 5 Power 2 | . 1 2 Propulsion . | . . . Utility . | . . . Weapon 1 | . . 1 Tool/Special . | . . . Unused Backups 9 | . 3 6 Power 4 | . 1 3 Propulsion 2 | . 2 . Utility . | . . . Weapon 3 | . . 3 Tool/Special . | . . . Average Slot Usage (%) 88 | . 90 86 Engine 12 | . 13 10 Treads 25 | . 27 22 Device 3 | . 1 6 Storage 12 | . 14 11 Processor 2 | . 4 . Protection 7 | . 2 14 Energy Gun 16 | . 16 16 Ballistic Gun 6 | . 8 4 Peak Build Rating 9 | 6 7 9 Average Rating 7 | 3 6 7 On Entrance 4 | . 6 7 Avg Prop Armor Cover (%) . | . . . Naked Turns . | . . . Heaviest Build 16 | 10 13 16 Greatest Support 60 | 40 40 60 Greatest Overweight (x) 4 | . . 4 Average Overweight (x) . | . . . Largest Inventory Capacity 8 | 8 8 8 Average Capacity 7 | 7 8 8 Most Carried 7 | 5 7 7 Average Carried 4 | 1 3 5 Final Capacity 8 | 8 8 8 Final Carried 6 | 1 6 5 Class Distribution -------------------- 64% | Mutant 35% | Scavenger-Mutant Dominant Class ---------------- Mutant | -10/Materials Scavenger-Mutant | -9/Materials Resources | -11 -10 -9 ----------- Run | Yrd Mat Mat Matter Collected 470 | 183 171 116 Remotely . | . . . Salvage Created 1270 | . 567 703 Parts 95 | . 42 53 Haulers Intercepted . | . . . Recyclers Shooed 1 | . . 1 Parts Field Recycled . | . . . Retrieved Matter . | . . . Parts Self-Destructed . | . . . Prevented . | . . . Parts Restored . | . . . Kills | -11 -10 -9 ------- Run | Yrd Mat Mat Combat Hostiles Destroyed 35 | . 14 21 Guns 35 | . 14 21 Classes Destroyed 8 | . 6 2 Worker 3 | . 1 2 Builder 1 | . 1 . Tunneler 1 | . 1 . Watcher 2 | . 1 1 Swarmer 13 | . 5 8 Grunt 17 | . 9 8 Duelist 1 | . . 1 Sentry 4 | . . 4 Best Kill Streak 5 | . 5 4 Combat Bots Only 4 | . 4 3 Max Kills in Single Turn 1 | . 1 1 Gunslinging . | . . . Exploded . | . . . Melee . | . . . Uniques/NPCs Destroyed . | . . . Combat | -11 -10 -9 -------- Run | Yrd Mat Mat Hostile Shots Fired 267 | . 98 169 Missed 67 | . 27 40 Hits 200 | . 71 129 Melee 1 | . . 1 Projectile 199 | . 71 128 AOE 1 | . 1 . Critical Strikes 4 | . . 4 Actively Blocked 1 | . . 1 Damage Taken 2469 | . 819 1650 Core 551 | . 149 402 Absorbed by Shields . | . . . Redirected to Shielding 45 | . . 45 Core Remaining (%) 70 | 100 40 . Volleys Fired 139 | . 58 81 Largest 2 | . 2 2 Hottest 80 | . 80 80 Shots Fired 256 | . 106 150 Gun 255 | . 106 149 Cannon . | . . . Launcher 1 | . . 1 Special . | . . . Kinetic 76 | . 44 32 Thermal 179 | . 62 117 Explosive 1 | . . 1 Electromagnetic . | . . . Robot Hit Streak 25 | . 12 25 Robot Miss Streak 5 | . 5 5 Penetration Max . | . . . Secondary Targets 5 | . 2 3 Max Gunslinging Chain 1 | . 1 1 Shots Hit Robots 175 | . 61 114 Core Hits 76 | . 31 45 Critical Kills . | . . . Critical Parts Destroyed . | . . . Critical Strikes . | . . . Melee Attacks . | . . . Impact . | . . . Slashing . | . . . Piercing . | . . . Sneak Attacks . | . . . Combat Hostiles . | . . . Follow-up Attacks . | . . . Damage Inflicted 1868 | . 626 1242 Guns 1799 | . 618 1181 Cannons . | . . . Explosions 25 | . . 25 Melee . | . . . Ramming 44 | . 8 36 Kinetic 346 | . 189 157 Thermal 1453 | . 429 1024 Explosive 25 | . . 25 Electromagnetic . | . . . Impact . | . . . Slashing . | . . . Piercing . | . . . Highest Corruption . | . . . Average Corruption . | . . . Corruption Purged . | . . . Corruption Blocked . | . . . Overload Shots . | . . . Overflow Damage . | . . . Projectiles . | . . . Explosions . | . . . Melee . | . . . Knockbacks . | . . . Impact . | . . . Kinetic . | . . . Secondary . | . . . Self-Inflicted Damage 3 | . . 3 Shots 1 | . . 1 Rammed 17 | . 5 12 Targets Rammed 18 | . 5 13 Kicked . | . . . Crushed 1 | . . 1 Highest Temperature 117 | . 117 114 Average Temperature 30 | . 37 26 Received Heat Transfer 765 | . 261 504 Siege Activations . | . . . Martial Activations . | . . . Shielding Activations . | . . . Robots Disrupted . | . . . Combat Hostiles . | . . . Robots Corrupted . | . . . Combat Hostiles . | . . . Parts Fried . | . . . Impact Corruptions . | . . . Robots Melted . | . . . Combat Hostiles . | . . . Parts Melted 4 | . 1 3 Heat Transferred 3275 | . 975 2300 Parts Sabotaged . | . . . Parts Stolen . | . . . Parts Stripped . | . . . Power Chain Reactions . | . . . Alert | -11 -10 -9 ------- Run | Yrd Mat Mat Maximum Alert Level . | . . . Low Security (%) 100 | 100 100 100 Level 1 . | . . . Level 2 . | . . . Level 3 . | . . . Level 4 . | . . . Level 5 . | . . . High Security . | . . . Max Security . | . . . Peak Influence 132 | . 132 85 Initial . | . . . Average 26 | . 27 25 Influence Increases 918 | . 372 546 Destroy 0b10 Robot/C 700 | . 280 420 Destroy 0b10 Robot/NC 35 | . 20 15 Destroy Leader 164 | . 72 92 Destroy Structure 4 | . . 4 Lose Combat Pursuer 15 | . . 15 Influence Decreases 884 | . 372 512 Time Decay 721 | . 342 379 Lost Part 163 | . 30 133 Squads Dispatched 8 | . 5 3 Investigation 2 | . 2 . Extermination . | . . . Reinforcement 6 | . 3 3 Assault . | . . . Garrison . | . . . Intercept . | . . . Searches Triggered . | . . . Construction Impeded . | . . . Haulers Reinforced . | . . . Active Scanning Responses . | . . . Cargo Convoy Interrupts . | . . . Stealth | -11 -10 -9 --------- Run | Yrd Mat Mat Distress Signals 5 | . 2 3 Communications Jammed . | . . . Distress Signals . | . . . Times Spotted 74 | . 28 46 Peak Tracking Total 7 | . 3 7 Tactical Retreats 1 | . . 1 Traps | -11 -10 -9 ------- Run | Yrd Mat Mat Traps Triggered 4 | . 2 2 Indirectly . | . . . Trap Hack Attempts . | . . . Triggered . | . . . Disarmed . | . . . Reprogrammed . | . . . Reused . | . . . Traps Extracted . | . . . Installed . | . . . Triggered . | . . . Machines | -11 -10 -9 ---------- Run | Yrd Mat Mat Machines Disabled . | . . . Max in Single Turn . | . . . Machines Repaired . | . . . Machines Dismantled . | . . . Machines Sabotaged . | . . . Overloaded Fab Kills . | . . . Hacking | -11 -10 -9 --------- Run | Yrd Mat Mat Machines Accessed 11 | . 6 5 Terminals 4 | . 3 1 Fabricators . | . . . Repair Stations 1 | . 1 . Recycling Units 4 | . 2 2 Scanalyzers 2 | . . 2 Garrison Access . | . . . Total Hacks 31 | . 18 13 Successful 18 | . 9 9 Failed 12 | . 9 3 Catastrophic 6 | . 4 2 Database Lockouts 1 | . . 1 Manual 3 | . . 3 Terminals 14 | . 11 3 Fabricators . | . . . Repair Stations 2 | . 2 . Recycling Units 9 | . 5 4 Scanalyzers 6 | . . 6 Garrison Access . | . . . Terminal Hacks 5 | . 4 1 Alert Level 2 | . 2 . Locate Traps 1 | . 1 . Recall Reinforcements 2 | . 1 1 Fabricator Hacks . | . . . Repair Station Hacks 1 | . 1 . Scan Component 1 | . 1 . Recycling Unit Hacks 7 | . 4 3 Recycle Component 1 | . 1 . Process 2 | . 2 . Report Inventory 2 | . . 2 Retrieve Components 2 | . 1 1 Scanalyzer 5 | . . 5 Insert Component 2 | . . 2 Analyze 1 | . . 1 Retrieve Study 2 | . . 2 Garrison Access Hacks . | . . . Unauthorized Hacks . | . . . Terminals . | . . . Fabricators . | . . . Repair Stations . | . . . Recycling Units . | . . . Scanalyzers . | . . . Garrison Access . | . . . Data Cores Recovered . | . . . Used . | . . . Hacking Detections 5 | . 3 2 Full Trace Events 2 | . 2 . Feedback Events . | . . . Feedback Blocked . | . . . Robot Schematics Acquired . | . . . Robots Built . | . . . Authchips . | . . . Time . | . . . Total Robot Build Rating . | . . . Part Schematics Acquired 1 | . . 1 Parts Built . | . . . Authchips . | . . . Time . | . . . Total Part Build Rating . | . . . Part Studies Acquired 2 | . . 2 Parts Repaired . | . . . Time . | . . . Parts Recycled 1 | . 1 . Recycled Matter 19 | . 19 . Retrieved Matter . | . . . Retrieved Components 16 | . 9 7 Parts Scanalyzed 1 | . . 1 Part Schematics Acquired 1 | . . 1 Parts Damaged . | . . . Bothacking | -11 -10 -9 ------------ Run | Yrd Mat Mat Used RIF Installer . | . . . Robots Hacked . | . . . Non-combat . | . . . Combat . | . . . Robot Hacks Applied . | . . . Relay Couplers Released . | . . . Fabnet Peak Effective % . | . . . Robots Rewired . | . . . Allies Hacked . | . . . Hacks Repelled . | . . . Allies | -11 -10 -9 -------- Run | Yrd Mat Mat Total Allies . | . . . Largest Group . | . . . Highest-Rated Group . | . . . Highest-Rated Ally . | . . . Total Orders . | . . . Ally Attacks . | . . . Total Damage . | . . . Kills . | . . . Allies Corrupted . | . . . Allies Melted . | . . . Intel | -11 -10 -9 ------- Run | Yrd Mat Mat Active Infowar (turns) 906 | . 206 700 Structural 906 | . 206 700 Robot Analysis Total . | . . . Derelict Logs Recovered . | . . . Drone Launches . | . . . Drone Recoveries . | . . . Exploration | -11 -10 -9 ------------- Run | Yrd Mat Mat Turns Passed 2860 | 54 1518 1288 Spaces Moved 1502 | 39 831 632 Core 27 | 18 . 9 Treads 1475 | 21 831 623 Legs . | . . . Wheels . | . . . Hover . | . . . Flight . | . . . Fastest Speed 50 | 50 160 150 Average Speed 158 | 109 160 160 Slowest Speed 250 | 160 160 250 Overloaded Moves . | . . . Propulsion Burnouts . | . . . Robots Hopped . | . . . Potential Cave-ins . | . . . Cave-ins Triggered . | . . . Exploration Rate (%) 50 | 4 98 48 Regions Visited 2 Branch Regions . Pre-discovered Areas . | . . . Known Exits Taken . | . . . Unknown Exits Taken 2 | 1 1 . Scrap Searched . | . . . Spaces Dug . | . . . Terrain Destroyed 6 | . . 6 Melee . | . . . Projectile . | . . . AOE 6 | . . 6 Terrain Rammed . | . . . Walls Destroyed . | . . . Machines Disabled . | . . . Actions | -11 -10 -9 --------- Run | Yrd Mat Mat Total 1729 | 51 922 756 Wait 2 | . 1 1 Move 1500 | 38 830 632 Hop . | . . . Pick Up 36 | 7 15 14 Fast Attach . | . . . Attach 27 | 6 8 13 Detach 2 | . 2 . Swap . | . . . Drop 5 | . 3 2 Fire 139 | . 58 81 Melee . | . . . Ram . | . . . Kick . | . . . Crush 18 | . 5 13 Escape Stasis . | . . . Rewire . | . . . Trap . | . . . Miscellaneous . | . . . Route ------- -11/Scrapyard -10/Materials (discovered 5 exits: *Mat x3 / [*Min] / [*Sub]) -9/Materials (discovered 1 exit: [*Min]) History --------- Turn | Location | Event 8 | -11/Scrapyard | Discovered new exit (range 14) 55 | -11/Scrapyard | Entered Materials 228 | -10/Materials | Discovered new exit (range 16) 303 | -10/Materials | Build established: Mutant 550 | -10/Materials | Discovered new exit (range 9) 663 | -10/Materials | Discovered new exit (range 5) 709 | -10/Materials | Discovered new exit (range 16) 1025 | -10/Materials | Lost 3 parts (1p1n1w) 1097 | -10/Materials | Discovered new exit (range 10) 1156 | -10/Materials | Core integrity fell below 50% 1573 | -10/Materials | Entered another Materials area 1573 | -9/Materials | Evolved 2 slots: Propulsion x1, Utility x1 2224 | -9/Materials | Central database locked down 2336 | -9/Materials | Core integrity fell below 50% 2375 | -9/Materials | Lost 3 parts (1p2n) 2677 | -9/Materials | Build established: Scavenger-Mutant 2708 | -9/Materials | Discovered new exit (range 16) 2852 | -9/Materials | Core integrity fell below 20% 2861 | -9/Materials | Destroyed by Y-45 Defender with Heavy Assault Rifle Last Messages --------------- 02776_ S-10 Pest destroyed. 02780_ R-06 Scavenger collects Lgt. Ion Engine. 02785_ K-01 Serf collects debris. 02790_ Acquired 7 matter. 02794_ K-01 Serf collects debris. 02797_ Slammed into K-01 Serf. 02798_ R-06 Scavenger collects Lgt. Assault Rifle. 02799_ Slammed into K-01 Serf. 02803_ R-06 Scavenger collects Flight Unit. 02809_ R-06 Scavenger collects Lgt. Ion Engine. 02812_ Acquired Mining Laser. 02836_ K-01 Serf collects debris. 02851_ Sml. Laser+ destroyed. 02855_ Dropped Mni. Grenade Launcher. 02855_ Y-45 Defender destroyed. 02857_ Acquired Mni. Grenade Launcher. 02858_ Critical hit (Burn: +37). 02858_ Lgt. Assault Rifle destroyed. 02858_ Lgt. Treads destroyed. Map ----- +----------------------------------------------------+ | #### !##?## ## ### *"" # ????????? | | #### !###?########### + *"" # ????????? | | # ######?########### ### %*%"% # ????????? | | "" # ################## ### =%= # ? ##????? | | "" # ##??# # #######+#### ##????? | | "" # ##??# """ """ # | | %+ ##??# """ """ # | | ""# ##??# """ """ + | | T"# ##??# # %###### ######## | | ""# ##??############## % ###### #########? | | # ##??????????????#=% "###!!!!!!##???????? | | #### ##??????????????# ""###!!!!!!##???????? | | #### ##??????????????# ||###########???????? | | ??## ##??????????????#